Cogmind - Beta 17.1 @@@ ROGUE MODE // 2026.09.10 @ 10:38:42 Player: Zane Result: Destroyed by TJ-8X8(R) with Subdweller Laser Performance ------------- Evolutions (0) 0 Regions Visited (2) 400 Robots Destroyed (13) 65 Value Destroyed (319) 319 Prototype IDs (0) 0 Alien Tech Used (0) 0 Bonus (0) 0 TOTAL SCORE: 784 Bonus ------- None Cogmind --------- Core Integrity 0/250 Matter 300/300 Energy 200/200 System Corruption 0% Temperature Cool (6) Movement Core (200) Ox3 Location -10/Subcaves Parts ------- > --- POWER (1) -------- Subdweller Power Source > --- PROPULSION (2) --- (None) > --- UTILITY (2) ------ Small Storage Unit > --- WEAPON (2) ------- Hammer > --- INVENTORY (8) ---- Improved Ion Engine Sensor Array Signal Interpreter Improved Terrain Scanner Scrap Shield Fragment (49) Scrap Shield Fragment (47) Peak State ------------ > --- POWER ------------ Improved Ion Engine > --- PROPULSION ------- Aluminum Leg Aluminum Leg > --- UTILITY ---------- Small Storage Unit Seismic Detector > --- WEAPON ----------- Small Laser Hammer > --- INVENTORY -------- Ion Engine Aluminum Leg Aluminum Leg Sensor Array Signal Interpreter Improved Terrain Scanner Light Armor Plating Small Laser [Rating: 9] Favorites ----------- Power Light Ion Engine Engine Light Ion Engine Propulsion Aluminum Leg Leg Aluminum Leg Utility Small Storage Unit Device Seismic Detector Storage Small Storage Unit Protection Light Armor Plating Weapon Small Laser Energy Gun Small Laser Impact Weapon Hammer Build | -11 -10 -10 ------- Run | Yrd Mat Sub Slots Evolved . | . . . Power . | . . . Propulsion . | . . . Utility . | . . . Weapon . | . . . Parts Attached 13 | 7 2 4 Power 3 | 1 1 1 Engine 3 | 1 1 1 Core . | . . . Reactor . | . . . Propulsion 4 | 2 . 2 Treads . | . . . Leg 4 | 2 . 2 Wheel . | . . . Hover . | . . . Flight . | . . . Utility 3 | 2 . 1 Device 1 | 1 . . Storage 1 | 1 . . Processor . | . . . Hackware . | . . . Protection 1 | . . 1 Artifact . | . . . Weapon 3 | 2 1 . Energy Gun 2 | 2 . . Energy Cannon . | . . . Ballistic Gun . | . . . Ballistic Cannon . | . . . Launcher . | . . . Special Weapon . | . . . Impact Weapon 1 | . 1 . Slashing Weapon . | . . . Piercing Weapon . | . . . Special Melee Weapon . | . . . Unidentified Prototypes . | . . . Parts Lost 9 | . . 9 Power 1 | . . 1 Propulsion 4 | . . 4 Utility 2 | . . 2 Weapon 2 | . . 2 Highest Loss Streak 5 | . . 5 To Critical Strikes . | . . . Average Backups 6 | 1 6 6 Power . | . 1 1 Propulsion 1 | . 1 . Utility 2 | . 2 3 Weapon 1 | . 1 . Tool/Special . | . . . Unused Backups 7 | . 3 4 Power 2 | . 1 1 Propulsion 1 | . 1 . Utility 3 | . . 3 Weapon 1 | . 1 . Tool/Special . | . . . Average Slot Usage (%) 96 | . 100 84 Engine 13 | . 14 12 Leg 27 | . 28 26 Device 13 | . 14 9 Storage 14 | . 14 14 Energy Gun 16 | . 20 5 Impact Weapon 9 | . 8 14 Peak Build Rating 9 | 7 9 9 Average Rating 7 | 5 7 7 On Entrance 5 | . 7 9 Avg Prop Armor Cover (%) . | . . . Naked Turns . | . . . Heaviest Build 18 | 11 16 18 Greatest Support 20 | 20 20 20 Greatest Overweight (x) 2 | 2 . 1 Average Overweight (x) . | . . . Largest Inventory Capacity 8 | 8 8 8 Average Capacity 7 | 7 8 8 Most Carried 8 | 4 8 8 Average Carried 6 | 1 6 7 Final Capacity 8 | 8 8 8 Final Carried 8 | 4 8 6 Class Distribution -------------------- 93% | Mutant 6% | Scavenger-Mutant Dominant Class ---------------- Mutant | -10/Materials Mutant | -10/Subcaves Resources | -11 -10 -10 ----------- Run | Yrd Mat Sub Matter Collected 335 | 268 22 45 Remotely . | . . . Salvage Created 486 | 123 256 107 Parts 25 | 7 14 4 Haulers Intercepted 1 | . 1 . Recyclers Shooed . | . . . Parts Field Recycled . | . . . Retrieved Matter . | . . . Parts Self-Destructed 3 | . . 3 Prevented . | . . . Parts Restored . | . . . Kills | -11 -10 -10 ------- Run | Yrd Mat Sub Combat Hostiles Destroyed 9 | . 6 3 Melee 4 | . 2 2 Guns 2 | . 2 . Classes Destroyed 7 | 2 4 1 Tunneler 1 | 1 . . Hauler 1 | . 1 . Recycler 1 | 1 . . Watcher 1 | . 1 . Swarmer 3 | . 3 . Grunt 3 | . 3 . Subdweller 3 | . . 3 Best Kill Streak 2 | 2 2 2 Combat Bots Only 2 | . 2 2 Max Kills in Single Turn 1 | 1 1 1 Gunslinging . | . . . Exploded . | . . . Melee 1 | . 1 1 Uniques/NPCs Destroyed . | . . . Combat | -11 -10 -10 -------- Run | Yrd Mat Sub Hostile Shots Fired 94 | . 42 52 Missed 27 | . 14 13 Hits 67 | . 28 39 Projectile 67 | . 28 39 Critical Strikes 2 | . . 2 Damage Taken 1086 | . 289 797 Core 270 | . 85 185 Absorbed by Shields . | . . . Core Remaining (%) 100 | 100 . . Volleys Fired 15 | 3 12 . Largest 2 | 2 2 . Hottest 80 | 80 80 . Shots Fired 30 | 6 24 . Gun 30 | 6 24 . Cannon . | . . . Launcher . | . . . Special . | . . . Kinetic . | . . . Thermal 30 | 6 24 . Explosive . | . . . Electromagnetic . | . . . Robot Hit Streak 5 | 5 4 . Robot Miss Streak 2 | 1 2 . Penetration Max . | . . . Secondary Targets . | . . . Shots Hit Robots 43 | 5 21 17 Core Hits 17 | 3 12 2 Critical Kills 1 | . 1 . Critical Parts Destroyed 2 | . 1 1 Critical Strikes 3 | . 2 1 Smash 3 | . 2 1 Melee Attacks 38 | . 18 20 Impact 38 | . 18 20 Slashing . | . . . Piercing . | . . . Sneak Attacks . | . . . Combat Hostiles . | . . . Follow-up Attacks . | . . . Damage Inflicted 881 | 55 344 482 Guns 209 | 55 154 . Cannons . | . . . Explosions . | . . . Melee 672 | . 190 482 Ramming . | . . . Kinetic . | . . . Thermal 209 | 55 154 . Explosive . | . . . Electromagnetic . | . . . Impact 672 | . 190 482 Slashing . | . . . Piercing . | . . . Highest Corruption . | . . . Average Corruption . | . . . Corruption Purged . | . . . Corruption Blocked . | . . . Overload Shots . | . . . Overflow Damage 88 | . 47 41 Projectiles . | . . . Explosions . | . . . Melee 88 | . 47 41 Knockbacks 3 | . 1 2 Impact 3 | . 1 2 Kinetic . | . . . Secondary . | . . . Self-Inflicted Damage . | . . . Shots . | . . . Rammed . | . . . Targets Rammed . | . . . Kicked . | . . . Crushed . | . . . Highest Temperature 153 | 36 153 . Average Temperature 47 | 18 53 . Received Heat Transfer 258 | . 96 162 Siege Activations . | . . . Martial Activations . | . . . Shielding Activations . | . . . Robots Disrupted . | . . . Combat Hostiles . | . . . Robots Corrupted 3 | . 2 1 Combat Hostiles 3 | . 2 1 Parts Fried 3 | . 3 . Impact Corruptions 5 | . 3 2 Robots Melted . | . . . Combat Hostiles . | . . . Parts Melted . | . . . Heat Transferred 475 | 125 350 . Parts Sabotaged . | . . . Parts Stolen . | . . . Parts Stripped . | . . . Power Chain Reactions . | . . . Alert | -11 -10 -10 ------- Run | Yrd Mat Sub Maximum Alert Level . | . . . Low Security (%) 100 | 100 100 . Level 1 . | . . . Level 2 . | . . . Level 3 . | . . . Level 4 . | . . . Level 5 . | . . . High Security . | . . . Max Security . | . . . Peak Influence 83 | 10 83 . Initial . | . . . Average 20 | 1 22 . Influence Increases 231 | 10 221 . Destroy 0b10 Robot/C 120 | . 120 . Destroy 0b10 Robot/NC 20 | 10 10 . Destroy Leader 34 | . 34 . Successful Hack 10 | . 10 . Disable Machine 15 | . 15 . Destroy Structure 2 | . 2 . Lose Combat Pursuer 30 | . 30 . Influence Decreases 231 | 10 171 50 Entered New Map 25 | . . 25 Time Decay 206 | 10 171 25 Squads Dispatched . | . . . Investigation . | . . . Extermination . | . . . Reinforcement . | . . . Assault . | . . . Garrison . | . . . Intercept . | . . . Searches Triggered . | . . . Construction Impeded . | . . . Haulers Reinforced . | . . . Active Scanning Responses . | . . . Cargo Convoy Interrupts . | . . . Stealth | -11 -10 -10 --------- Run | Yrd Mat Sub Distress Signals . | . . . Communications Jammed . | . . . Distress Signals . | . . . Times Spotted 15 | . 11 4 Peak Tracking Total 3 | . 3 2 Tactical Retreats 2 | . 2 . Traps | -11 -10 -10 ------- Run | Yrd Mat Sub Traps Triggered . | . . . Indirectly . | . . . Trap Hack Attempts . | . . . Triggered . | . . . Disarmed . | . . . Reprogrammed . | . . . Reused . | . . . Traps Extracted . | . . . Installed . | . . . Triggered . | . . . Machines | -11 -10 -10 ---------- Run | Yrd Mat Sub Machines Disabled 1 | . 1 . Max in Single Turn 1 | . 1 . Machines Repaired . | . . . Machines Dismantled . | . . . Machines Sabotaged . | . . . Overloaded Fab Kills . | . . . Hacking | -11 -10 -10 --------- Run | Yrd Mat Sub Machines Accessed 2 | . 2 . Terminals 2 | . 2 . Fabricators . | . . . Repair Stations . | . . . Recycling Units . | . . . Scanalyzers . | . . . Garrison Access . | . . . Total Hacks 7 | . 7 . Successful 5 | . 5 . Failed 2 | . 2 . Catastrophic 1 | . 1 . Database Lockouts . | . . . Manual 7 | . 7 . Terminals 7 | . 7 . Fabricators . | . . . Repair Stations . | . . . Recycling Units . | . . . Scanalyzers . | . . . Garrison Access . | . . . Terminal Hacks 1 | . 1 . Transport Status 1 | . 1 . Fabricator Hacks . | . . . Repair Station Hacks . | . . . Recycling Unit Hacks . | . . . Scanalyzer . | . . . Garrison Access Hacks . | . . . Unauthorized Hacks 4 | . 4 . Terminals 4 | . 4 . Botnet 2 | . 2 . Skim 2 | . 2 . Fabricators . | . . . Repair Stations . | . . . Recycling Units . | . . . Scanalyzers . | . . . Garrison Access . | . . . Data Cores Recovered . | . . . Used . | . . . Hacking Detections 2 | . 2 . Full Trace Events 1 | . 1 . Feedback Events . | . . . Feedback Blocked . | . . . Robot Schematics Acquired . | . . . Robots Built . | . . . Authchips . | . . . Time . | . . . Total Robot Build Rating . | . . . Part Schematics Acquired . | . . . Parts Built . | . . . Authchips . | . . . Time . | . . . Total Part Build Rating . | . . . Part Studies Acquired . | . . . Parts Repaired . | . . . Time . | . . . Parts Recycled . | . . . Recycled Matter . | . . . Retrieved Matter . | . . . Retrieved Components . | . . . Parts Scanalyzed . | . . . Part Schematics Acquired . | . . . Parts Damaged . | . . . Bothacking | -11 -10 -10 ------------ Run | Yrd Mat Sub Used RIF Installer . | . . . Robots Hacked . | . . . Non-combat . | . . . Combat . | . . . Robot Hacks Applied . | . . . Relay Couplers Released . | . . . Fabnet Peak Effective % . | . . . Robots Rewired . | . . . Allies Hacked . | . . . Hacks Repelled . | . . . Allies | -11 -10 -10 -------- Run | Yrd Mat Sub Total Allies . | . . . Largest Group . | . . . Highest-Rated Group . | . . . Highest-Rated Ally . | . . . Total Orders . | . . . Ally Attacks . | . . . Total Damage . | . . . Kills . | . . . Allies Corrupted . | . . . Allies Melted . | . . . Intel | -11 -10 -10 ------- Run | Yrd Mat Sub Active Infowar (turns) 926 | 31 756 139 Seismic 926 | 31 756 139 Robot Analysis Total . | . . . Derelict Logs Recovered 2 | . . 2 Drone Launches . | . . . Drone Recoveries . | . . . Exploration | -11 -10 -10 ------------- Run | Yrd Mat Sub Turns Passed 1048 | 76 756 216 Spaces Moved 676 | 45 519 112 Core 5 | 5 . . Treads . | . . . Legs 671 | 40 519 112 Wheels . | . . . Hover . | . . . Flight . | . . . Fastest Speed 50 | 50 120 120 Average Speed 119 | 117 120 120 Slowest Speed 190 | 150 120 190 Overloaded Moves . | . . . Propulsion Burnouts . | . . . Robots Hopped . | . . . Potential Cave-ins . | . . . Cave-ins Triggered . | . . . Exploration Rate (%) 30 | 3 79 8 Regions Visited 2 Branch Regions 1 Pre-discovered Areas 1 | . . 1 Known Exits Taken . | . . . Unknown Exits Taken 2 | 1 1 . Scrap Searched . | . . . Spaces Dug 2 | . 2 . Terrain Destroyed 2 | . 2 . Melee 2 | . 2 . Projectile . | . . . AOE . | . . . Terrain Rammed . | . . . Walls Destroyed . | . . . Machines Disabled . | . . . Actions | -11 -10 -10 --------- Run | Yrd Mat Sub Total 814 | 58 599 157 Wait 55 | . 38 17 Move 674 | 44 518 112 Hop . | . . . Pick Up 13 | 4 7 2 Fast Attach 8 | 7 . 1 Attach 4 | . . 4 Detach . | . . . Swap 3 | . 2 1 Drop 4 | . 4 . Fire 15 | 3 12 . Melee 38 | . 18 20 Ram . | . . . Kick . | . . . Crush . | . . . Escape Stasis . | . . . Rewire . | . . . Trap . | . . . Miscellaneous . | . . . Route ------- -11/Scrapyard -10/Materials (discovered 4 exits: [*Mat x2] / [*Min] / [*Sub]) -10/Subcaves History --------- Turn | Location | Event 8 | -11/Scrapyard | Discovered new exit (range 15) 77 | -11/Scrapyard | Entered Materials 232 | -10/Materials | Discovered new exit (range 8) 306 | -10/Materials | Build established: Mutant 391 | -10/Materials | Discovered new exit (range 9) 576 | -10/Materials | Discovered new exit (range 16) 823 | -10/Materials | Discovered new exit (range 9) 833 | -10/Materials | Entered Subcaves 837 | -10/Subcaves | Learned location of Mines (-10) 843 | -10/Subcaves | Learned Materials security intel 911 | -10/Subcaves | Core integrity fell below 50% 934 | -10/Subcaves | Core integrity fell below 20% 949 | -10/Subcaves | Lost 5 parts (1p2n1u1w) 1049 | -10/Subcaves | Destroyed by TJ-8X8(R) with Subdweller Laser Last Messages --------------- 00938_ Subatomizers dissect the Sub. Power Source. 00938_ Acquired Scrap Shield Fragment. 00944_ Acquired Sub. Power Source. 00946_ Acquired 18 matter. 00949_ Acquired 10 matter. 01033_ Aluminum Leg destroyed. 01036_ T0-MW2(R) suffers critical hit (Smash). 01036_ Destroyed Disposable Heat Sink. 01036_ T0-MW2(R) system corrupted by crushing effect. 01039_ Seismic Detector destroyed. 01041_ T0-MW2(R) misfires. 01043_ Aluminum Leg destroyed. 01044_ Destroyed Sub. Power Source. 01044_ T0-MW2(R) system corrupted by crushing effect. 01044_ T0-MW2(R) knocked back. 01045_ T0-MW2(R) system terminally corrupted. 01047_ Sml. Laser destroyed. Map ----- +----------------------------------------------------+ | ??????????????????????????????????????????????? | | ??????????????????????????????????????????????? | | ??????????????????????????????????????????????? | | ??????????????????????????????????????????????? | | ??????????????????????????????????????????????? | | ??????????????????????????????????????????????? | | ??????????????????????????????????????????????? | | ??????????????????????????????????????????????? | | ??????????????????????????????????????????????? | | ??????????????????????????????????????????????? | | ??????????????????????????????????????????????? | | ????????????????????????????? ????????????????? | | ????????????????????????""??? #???????????????? | | ???????????????????????? ??? #???????????????? | | ???????????????????????# ?? #???????????????? | | ???????????????????????# ?? #???????????????? | | ???????????????????????? ?? #???????????????? | | ????????????????????????""## #???????????????? | | ??????????????????##???? #???????????????? | | ??????????????????# ##?? ##??????????????? | | ?????????????????## #?## #??????????????? | | ?????????????????# ##? ????????????????? | | ??????????????????# ## #?????????????????? | | ???????????????#### ## #??????????????????? | | ???????????????# R #??????????????????? | | ???????????????# &% @ #??????????????????? | | ???????????????# ## #??????????????????? | | ???????????????## ####??????????????????? | | ????????????????## ## #???###???????????????? | | ?????????????????##### ##?# #???????????????? | | ???????????????????## ## #???????????????? | | ???????????????????# #????????????????? | | ???????????????????# ##???????????????? | | ???????????????????# #???????????????? | | ???????????????????# #???????????????? | | ???????????????????# #???????????????? | | ???????????????????# ##???????????????? | | ??????????????????## ##????????????????? | | ?????????????????## #?????????????????? | | ?????????????????# #?????????????????? | | ???????????????### #?????????????????? | | ??????????????## #?????????????????? | | ??????????????# #?????????????????? | | ??????????????# ##?????????????????? | | ??????????????# ### #??????????????????? | | ???????????####= ##?## #??????????????????? | | ??????????##! %% ##??# ##?????????????????? | | ??????????# [ #### ##????????????????? | | ??????????### % % #????????????????? | | ????????????# %## #???????????????? | +----------------------------------------------------+ Best States ------------- Heat Dissipation 25 Energy Generation 15 Energy Capacity 265 Matter Stores 300 Matter Capacity 300 Sight Range 16 Terrain Scan Density 10 Armor Coverage 150 Evasion (%) 55 Item Schematics ----------------- None Robot Schematics ------------------ None Fabricated ------------ Nothing Repaired ---------- Nothing Studied --------- None Alien Tech Used ----------------- None Achievements -------------- None Challenges ------------ None Game ------ Seed SniperShockBay Manual? 0 Play Time 00:11:45 Cumulative 78.1 hours Start 2026.09.10 @ 10:20:27 End 2026.09.10 @ 10:38:42 Sessions 1 Manual Loads 0 Difficulty Rogue Special Mode None Game No. 88 Rogue 88 Adventurer 0 Explorer 0 Win Type - Total 0 Types 0/0/0/0/0/0/0/0/0/0 Lore% 57 Gallery% 44 Achievement% 34 Wizard Run 0 Options --------- Layout 1 ASCII 0 Keyboard 0 Movement Numpad Keybinds 0 Fullscreen 2 Font 24/Smallcaps Map View 50x35 Zoom Use 0% Tactical HUD 1 Map Filters NONE Filters NONE Steam 1 RUN: f0f7723e-884c-4500-a70c-bbe242a25ede